Cogmind - Beta 17 @@@ ROGUE MODE // 2026.07.09 @ 17:41:09 Player: Magician Result: Destroyed by S-10 Pest with Light Assault Rifle Performance ------------- Evolutions (0) 0 Regions Visited (2) 400 Robots Destroyed (5) 25 Value Destroyed (165) 165 Prototype IDs (0) 0 Alien Tech Used (0) 0 Bonus (0) 0 TOTAL SCORE: 590 Bonus ------- None Cogmind --------- Core Integrity 0/250 Matter 318/500 Energy 100/100 System Corruption 0% Temperature Cool (0) Movement Core (100) Ox1 Location -10/Mines Parts ------- > --- POWER (1) -------- (None) > --- PROPULSION (2) --- (None) > --- UTILITY (2) ------ High-capacity Matter Pod Targeting Computer > --- WEAPON (2) ------- (None) > --- INVENTORY (5) ---- Utility Shielding Backup Plating I Backup Plating I Peak State ------------ > --- POWER ------------ Ion Engine > --- PROPULSION ------- Light Treads Light Treads > --- UTILITY ---------- Backup Plating I Backup Plating I > --- WEAPON ----------- Light Assault Rifle Light Assault Rifle > --- INVENTORY -------- Targeting Computer [Rating: 7] Favorites ----------- Power Ion Engine Engine Ion Engine Propulsion Light Treads Treads Light Treads Utility Targeting Computer Storage High-capacity Matter Pod Processor Targeting Computer Protection Backup Plating I Weapon Light Assault Rifle Ballistic Gun Light Assault Rifle Special Weapon Mining Laser Build | -11 -10 -10 ------- Run | Yrd Mat Min Slots Evolved . | . . . Power . | . . . Propulsion . | . . . Utility . | . . . Weapon . | . . . Parts Attached 10 | 5 5 . Power 2 | 1 1 . Engine 2 | 1 1 . Core . | . . . Reactor . | . . . Propulsion 2 | 2 . . Treads 2 | 2 . . Leg . | . . . Wheel . | . . . Hover . | . . . Flight . | . . . Utility 3 | . 3 . Device . | . . . Storage 2 | . 2 . Processor 1 | . 1 . Hackware . | . . . Protection . | . . . Artifact . | . . . Weapon 3 | 2 1 . Energy Gun . | . . . Energy Cannon . | . . . Ballistic Gun 2 | 2 . . Ballistic Cannon . | . . . Launcher . | . . . Special Weapon 1 | . 1 . Impact Weapon . | . . . Slashing Weapon . | . . . Piercing Weapon . | . . . Special Melee Weapon . | . . . Unidentified Prototypes . | . . . Parts Lost 7 | . 7 . Power 2 | . 2 . Propulsion 2 | . 2 . Utility . | . . . Weapon 3 | . 3 . Highest Loss Streak 3 | . 3 . To Critical Strikes . | . . . Average Backups 1 | 1 1 3 Power . | . . . Propulsion . | . . . Utility 1 | . 1 3 Weapon . | . . . Tool/Special . | . . . Unused Backups 1 | . . 1 Power . | . . . Propulsion . | . . . Utility 1 | . . 1 Weapon . | . . . Tool/Special . | . . . Average Slot Usage (%) 66 | . 75 28 Engine 7 | . 8 . Treads 18 | . 22 . Storage 6 | . 4 14 Processor 10 | . 10 14 Protection 4 | . 5 . Ballistic Gun 15 | . 18 . Special Weapon 2 | . 3 . Peak Build Rating 7 | 5 7 2 Average Rating 4 | 3 5 2 On Entrance 2 | . 5 2 Avg Prop Armor Cover (%) . | . . . Naked Turns . | . . . Heaviest Build 11 | 7 11 4 Greatest Support 40 | 40 40 3 Greatest Overweight (x) 2 | . 2 1 Average Overweight (x) . | . . 1 Largest Inventory Capacity 5 | 5 5 5 Average Capacity 5 | 5 5 5 Most Carried 5 | 5 4 3 Average Carried 1 | 1 1 3 Final Capacity 5 | 5 5 5 Final Carried 3 | . 3 3 Class Distribution -------------------- 100% | Mutant Dominant Class ---------------- Mutant | -10/Materials Mutant | -10/Mines Resources | -11 -10 -10 ----------- Run | Yrd Mat Min Matter Collected 340 | 190 150 . Remotely . | . . . Salvage Created 164 | . 164 . Parts 11 | . 11 . Haulers Intercepted . | . . . Recyclers Shooed 2 | . 2 . Parts Field Recycled . | . . . Retrieved Matter . | . . . Parts Self-Destructed . | . . . Prevented . | . . . Parts Restored . | . . . Kills | -11 -10 -10 ------- Run | Yrd Mat Min Combat Hostiles Destroyed 4 | . 4 . Guns 3 | . 3 . Cannons 1 | . 1 . Classes Destroyed 2 | . 2 . Operator 1 | . 1 . Grunt 4 | . 4 . Best Kill Streak 2 | . 2 . Combat Bots Only 2 | . 2 . Max Kills in Single Turn 1 | . 1 . Gunslinging . | . . . Exploded . | . . . Melee . | . . . Uniques/NPCs Destroyed . | . . . Combat | -11 -10 -10 -------- Run | Yrd Mat Min Hostile Shots Fired 91 | . 85 6 Missed 19 | . 18 1 Hits 72 | . 67 5 Projectile 72 | . 67 5 Damage Taken 918 | . 863 55 Core 251 | . 196 55 Absorbed by Shields . | . . . Core Remaining (%) 100 | 100 . . Volleys Fired 51 | . 51 . Largest 2 | . 2 . Hottest 120 | . 120 . Shots Fired 65 | . 65 . Gun 59 | . 59 . Cannon . | . . . Launcher . | . . . Special 6 | . 6 . Kinetic 59 | . 59 . Thermal 6 | . 6 . Explosive . | . . . Electromagnetic . | . . . Robot Hit Streak 12 | . 12 . Robot Miss Streak 3 | . 3 . Penetration Max . | . . . Secondary Targets . | . . . Shots Hit Robots 46 | . 46 . Core Hits 15 | . 15 . Critical Kills . | . . . Critical Parts Destroyed 1 | . 1 . Critical Strikes 1 | . 1 . Destroy 1 | . 1 . Melee Attacks . | . . . Impact . | . . . Slashing . | . . . Piercing . | . . . Sneak Attacks . | . . . Combat Hostiles . | . . . Follow-up Attacks . | . . . Damage Inflicted 407 | . 407 . Guns 358 | . 358 . Cannons . | . . . Explosions . | . . . Melee . | . . . Ramming 1 | . 1 . Kinetic 358 | . 358 . Thermal 48 | . 48 . Explosive . | . . . Electromagnetic . | . . . Impact . | . . . Slashing . | . . . Piercing . | . . . Highest Corruption . | . . . Average Corruption . | . . . Corruption Purged . | . . . Corruption Blocked . | . . . Overload Shots . | . . . Overflow Damage 5 | . 5 . Projectiles 5 | . 5 . Explosions . | . . . Melee . | . . . Knockbacks . | . . . Impact . | . . . Kinetic . | . . . Secondary . | . . . Self-Inflicted Damage . | . . . Shots . | . . . Rammed 1 | . 1 . Targets Rammed 1 | . 1 . Kicked . | . . . Crushed . | . . . Highest Temperature 70 | . 70 . Average Temperature 20 | . 20 . Received Heat Transfer 501 | . 492 9 Siege Activations . | . . . Martial Activations . | . . . Shielding Activations . | . . . Robots Disrupted . | . . . Combat Hostiles . | . . . Robots Corrupted . | . . . Combat Hostiles . | . . . Parts Fried . | . . . Impact Corruptions . | . . . Robots Melted . | . . . Combat Hostiles . | . . . Parts Melted . | . . . Heat Transferred 100 | . 100 . Parts Sabotaged . | . . . Parts Stolen . | . . . Parts Stripped . | . . . Power Chain Reactions . | . . . Alert | -11 -10 -10 ------- Run | Yrd Mat Min Maximum Alert Level . | . . . Low Security (%) 100 | 100 100 100 Level 1 . | . . . Level 2 . | . . . Level 3 . | . . . Level 4 . | . . . Level 5 . | . . . High Security . | . . . Max Security . | . . . Peak Influence 50 | . 50 . Initial . | . . . Average 8 | . 11 . Influence Increases 119 | . 119 . Destroy 0b10 Robot/C 80 | . 80 . Destroy 0b10 Robot/NC 5 | . 5 . Destroy Leader 20 | . 20 . Successful Hack 10 | . 10 . Destroy Structure 4 | . 4 . Influence Decreases 119 | . 119 . Time Decay 90 | . 90 . Lost Part 29 | . 29 . Squads Dispatched 2 | . 2 . Investigation . | . . . Extermination . | . . . Reinforcement 2 | . 2 . Assault . | . . . Garrison . | . . . Intercept . | . . . Searches Triggered . | . . . Construction Impeded . | . . . Haulers Reinforced . | . . . Active Scanning Responses . | . . . Cargo Convoy Interrupts . | . . . Stealth | -11 -10 -10 --------- Run | Yrd Mat Min Distress Signals 2 | . 2 . Communications Jammed . | . . . Distress Signals . | . . . Times Spotted 19 | . 15 4 Peak Tracking Total 7 | . 7 4 Tactical Retreats . | . . . Traps | -11 -10 -10 ------- Run | Yrd Mat Min Traps Triggered . | . . . Indirectly . | . . . Trap Hack Attempts . | . . . Triggered . | . . . Disarmed . | . . . Reprogrammed 3 | . 3 . Reused . | . . . Traps Extracted . | . . . Installed . | . . . Triggered . | . . . Machines | -11 -10 -10 ---------- Run | Yrd Mat Min Machines Disabled . | . . . Max in Single Turn . | . . . Machines Repaired . | . . . Machines Dismantled . | . . . Machines Sabotaged . | . . . Overloaded Fab Kills . | . . . Hacking | -11 -10 -10 --------- Run | Yrd Mat Min Machines Accessed 3 | . 3 . Terminals 2 | . 2 . Fabricators . | . . . Repair Stations 1 | . 1 . Recycling Units . | . . . Scanalyzers . | . . . Garrison Access . | . . . Total Hacks 8 | . 8 . Successful 4 | . 4 . Failed 4 | . 4 . Catastrophic 1 | . 1 . Database Lockouts . | . . . Manual . | . . . Terminals 6 | . 6 . Fabricators . | . . . Repair Stations 2 | . 2 . Recycling Units . | . . . Scanalyzers . | . . . Garrison Access . | . . . Terminal Hacks 3 | . 3 . Locate Traps 2 | . 2 . Reprogram Traps 1 | . 1 . Fabricator Hacks . | . . . Repair Station Hacks 1 | . 1 . Refit 1 | . 1 . Recycling Unit Hacks . | . . . Scanalyzer . | . . . Garrison Access Hacks . | . . . Unauthorized Hacks . | . . . Terminals . | . . . Fabricators . | . . . Repair Stations . | . . . Recycling Units . | . . . Scanalyzers . | . . . Garrison Access . | . . . Data Cores Recovered . | . . . Used . | . . . Hacking Detections 2 | . 2 . Full Trace Events 2 | . 2 . Feedback Events . | . . . Feedback Blocked . | . . . Robot Schematics Acquired . | . . . Robots Built . | . . . Authchips . | . . . Time . | . . . Total Robot Build Rating . | . . . Part Schematics Acquired . | . . . Parts Built . | . . . Authchips . | . . . Time . | . . . Total Part Build Rating . | . . . Part Studies Acquired . | . . . Parts Repaired . | . . . Time . | . . . Parts Recycled . | . . . Recycled Matter . | . . . Retrieved Matter . | . . . Retrieved Components . | . . . Parts Scanalyzed . | . . . Part Schematics Acquired . | . . . Parts Damaged . | . . . Bothacking | -11 -10 -10 ------------ Run | Yrd Mat Min Used RIF Installer . | . . . Robots Hacked . | . . . Non-combat . | . . . Combat . | . . . Robot Hacks Applied . | . . . Relay Couplers Released . | . . . Fabnet Peak Effective % . | . . . Robots Rewired . | . . . Allies Hacked . | . . . Hacks Repelled . | . . . Allies | -11 -10 -10 -------- Run | Yrd Mat Min Total Allies . | . . . Largest Group . | . . . Highest-Rated Group . | . . . Highest-Rated Ally . | . . . Total Orders . | . . . Ally Attacks . | . . . Total Damage . | . . . Kills . | . . . Allies Corrupted . | . . . Allies Melted . | . . . Intel | -11 -10 -10 ------- Run | Yrd Mat Min Active Infowar (turns) . | . . . Robot Analysis Total . | . . . Derelict Logs Recovered 1 | . . 1 Drone Launches . | . . . Drone Recoveries . | . . . Exploration | -11 -10 -10 ------------- Run | Yrd Mat Min Turns Passed 538 | 49 399 90 Spaces Moved 302 | 40 172 90 Core 141 | 22 29 90 Treads 161 | 18 143 . Legs . | . . . Wheels . | . . . Hover . | . . . Flight . | . . . Fastest Speed 50 | 50 100 100 Average Speed 131 | 99 155 100 Slowest Speed 160 | 160 160 100 Overloaded Moves . | . . . Propulsion Burnouts . | . . . Robots Hopped . | . . . Potential Cave-ins . | . . . Cave-ins Triggered . | . . . Exploration Rate (%) 21 | 4 31 29 Regions Visited 2 Branch Regions 1 Pre-discovered Areas . | . . . Known Exits Taken . | . . . Unknown Exits Taken 2 | 1 1 . Scrap Searched . | . . . Spaces Dug . | . . . Terrain Destroyed 4 | . 4 . Melee . | . . . Projectile 4 | . 4 . AOE . | . . . Terrain Rammed . | . . . Walls Destroyed . | . . . Machines Disabled . | . . . Actions | -11 -10 -10 --------- Run | Yrd Mat Min Total 376 | 49 237 90 Wait . | . . . Move 300 | 39 171 90 Hop . | . . . Pick Up 12 | 5 7 . Fast Attach . | . . . Attach 8 | 5 3 . Detach . | . . . Swap 2 | . 2 . Drop 2 | . 2 . Fire 51 | . 51 . Melee . | . . . Ram 1 | . 1 . Kick . | . . . Crush . | . . . Escape Stasis . | . . . Rewire . | . . . Trap . | . . . Miscellaneous . | . . . Route ------- -11/Scrapyard -10/Materials -10/Mines History --------- Turn | Location | Event 6 | -11/Scrapyard | Discovered new exit (range 15) 50 | -11/Scrapyard | Entered Materials 277 | -10/Materials | Discovered new exit (range 8) 305 | -10/Materials | Build established: Mutant 429 | -10/Materials | Core integrity fell below 50% 439 | -10/Materials | Lost 3 parts (1n2w) 449 | -10/Materials | Entered Mines 453 | -10/Mines | Met a Derelict bent on vengeance 511 | -10/Mines | Learned 4 Materials zone layouts 536 | -10/Mines | Core integrity fell below 20% 539 | -10/Mines | Destroyed by S-10 Pest with Light Assault Rifle Last Messages --------------- 00402_ Lgt. Treads destroyed. 00408_ Lgt. Assault Rifle destroyed. 00413_ U-05 Engineer destroyed. 00415_ K-01 Serf collects debris. 00430_ M-13 Machinist fits Backup Propulsion I on G-47 Trooper. 00432_ K-01 Serf collects debris. 00439_ K-01 Serf cleans the Fusion Modulator. 00441_ Slammed into M-13 Machinist. 00441_ Ion Engine destroyed. 00443_ K-01 Serf collects debris. 00449_ W-16 Scout sends out distress signal. LOCATION=UNKNOWN GOAL=ESCAPE 00469_ T-07 Excavator is excavating. 00503_ 04-NGG(g): "UNAWARE KILLED MY BEST FRIEND! VENGEANCE!" 00511_ Acquired derelict log, extracted data. Data stored: Materials zone layouts (x4). 00535_ 04-NGG(g) destroyed. Map ----- +----------------------------------------------------+ | ?# #??????????????????????????????????????????? | | ?# #???????????????????????????????????????????? | | ?# #???????????????????????????????????????????? | | ## ##??????????????????????????????????????????? | | ##?????????????????????????????????????????? | | ##??????????####??????????????????????????? | | # #??????##### ##?????????????????????????? | | # #?????## #?????????????????????????? | | # ##?????# #?????????????????????????? | | ## #??????# #?????????????????????????? | | #### #??????# #?????????????????????????? | | #??? #??????# ##????????????????????????? | | #??# ##?????## #????????????????????????? | | ### ##?????### #????????????????????????? | | ## #???????## #????????????????????????? | | #????????## #????????????????????????? | | ##?????????### #????????????????????????? | | ##????????????# #????????????????????????? | | #?????????????# #????????????????????????? | | ##?????????????# #????????????????????????? | | ##??????????????# #######??????????????????? | | # #??????########## #??????????????????? | | ## ##????## ## ##### #??????????????????? | | ?## #????# #????????????????????????? | | ??# #????# ####?????????????????????? | | ??# ##???# @ ## #####??????????????? | | ??## ##### #??????????????? | | ???## ## #?????????????? | | ????## t [rss ????????? | | ?????# ## sgg ???????? | | ????# #### ## ### ???????? | | ???# ####??## ## ##?# ##?????????????? | | ???# ##??????## ##### ##???###??????????????? | | ???## ##????????####???####?????????????????????? | | ????####?????????????????????????????????????????? | | ?????????????????????????????????????????????????? | | ?????????????????????????????????????????????????? | | ?????????????????????????????????????????????????? | | ?????????????????????????????????????????????????? | | ?????????????????????????????????????????????????? | | ?????????????????????????????????????????????????? | | ?????????????????????????????????????????????????? | | ?????????????????????????????????????????????????? | | ?????????????????????????????????????????????????? | | ?????????????????????????????????????????????????? | | ?????????????????????????????????????????????????? | | ?????????????????????????????????????????????????? | | ?????????????????????????????????????????????????? | | ?????????????????????????????????????????????????? | | ?????????????????????????????????????????????????? | +----------------------------------------------------+ Best States ------------- Heat Dissipation 25 Energy Generation 10 Energy Capacity 250 Matter Stores 318 Matter Capacity 500 Sight Range 16 Terrain Scan Density 10 Armor Coverage 160 Evasion (%) 50 Targeting Accuracy 5 Recoil Reduction 2 Item Schematics ----------------- None Robot Schematics ------------------ None Fabricated ------------ Nothing Repaired ---------- Nothing Studied --------- None Alien Tech Used ----------------- None Achievements -------------- None Challenges ------------ None Game ------ Seed DiametricPulsarBooster Manual? 0 Play Time 00:08:15 Cumulative 9.2 hours Start 2026.07.09 @ 17:31:02 End 2026.07.09 @ 17:41:09 Sessions 1 Manual Loads 0 Difficulty Rogue Special Mode None Game No. 17 Rogue 1 Adventurer 16 Explorer 0 Win Type - Total 0 Types 0/0/0/0/0/0/0/0/0/0 Lore% 5 Gallery% 14 Achievement% 11 Wizard Run 0 Options --------- Layout 1 ASCII 0 Keyboard 0 Movement Mouse Keybinds 0 Fullscreen 1 Font 24/Smallcaps Map View 50x40 Zoom Use 0% Tactical HUD 1 Map Filters NONE Filters NONE Steam 1 RUN: 8dbb5665-bb3b-4ac3-ab99-b2be4313a2cd